[Event "*** Titled Tuesday Blitz"]
[Site "Chess.com"]
[Date "2019.11.05"]
[Round "6"]
[White "Denis_Makhnyov"]
[Black "Korchmar_Vasiliy"]
[Result "0-1"]
[WhiteElo "2904"]
[BlackElo "2726"]
[TimeControl "180+2"]
[EndTime "14:19:58 PST"]
[Termination "Korchmar_Vasiliy won by checkmate"]

1. d4 {[%clk 0:03:01.9]} 1... Nf6 {[%clk 0:03:00.8]} 2. c4 {[%clk 0:03:02.8]}
2... g6 {[%clk 0:03:01.1]} 3. g3 {[%clk 0:03:03.8]} 3... c6 {[%clk 0:02:59.3]}
4. Bg2 {[%clk 0:02:50.9]} 4... d5 {[%clk 0:03:00.5]} 5. Qa4 {[%clk 0:02:51.6]}
5... dxc4 {[%clk 0:02:52.6]} 6. Qxc4 {[%clk 0:02:52.2]} 6... Bg7 {[%clk
0:02:54]} 7. Nf3 {[%clk 0:02:51.7]} 7... O-O {[%clk 0:02:55.2]} 8. O-O {[%clk
0:02:53.3]} 8... a5 {[%clk 0:02:52.1]} 9. Rd1 {[%clk 0:02:46.7]} 9... Na6 {[%clk
0:02:53.1]} 10. Bf4 {[%clk 0:02:45.7]} 10... Bf5 {[%clk 0:02:51.7]} 11. Be5
{[%clk 0:02:37]} 11... Nb4 {[%clk 0:02:50.4]} 12. Qc1 {[%clk 0:00:43.8]} 12...
Nc2 {[%clk 0:02:19.6]} 13. Bxf6 {[%clk 0:00:44.5]} 13... Bxf6 {[%clk 0:02:19.4]}
14. g4 {[%clk 0:00:45.8]} 14... Be4 {[%clk 0:02:07.1]} 15. Nc3 {[%clk
0:00:46.6]} 15... Bxf3 {[%clk 0:02:04.2]} 16. Qxc2 {[%clk 0:00:46.6]} 16... Bxg4
{[%clk 0:02:04.5]} 17. Qe4 {[%clk 0:00:47.4]} 17... Bf5 {[%clk 0:02:03.4]} 18.
Qf4 {[%clk 0:00:47.8]} 18... Qb6 {[%clk 0:01:32]} 19. e4 {[%clk 0:00:29.6]}
19... Be6 {[%clk 0:01:33.3]} 20. e5 {[%clk 0:00:24.5]} 20... Bg7 {[%clk
0:01:33.8]} 21. Rd2 {[%clk 0:00:23.8]} 21... Rad8 {[%clk 0:01:34]} 22. Na4
{[%clk 0:00:24]} 22... Qa7 {[%clk 0:01:34.4]} 23. Nc5 {[%clk 0:00:24.7]} 23...
Bd5 {[%clk 0:01:32.9]} 24. a4 {[%clk 0:00:18.8]} 24... Bxg2 {[%clk 0:01:33.1]}
25. Kxg2 {[%clk 0:00:20.7]} 25... Rd5 {[%clk 0:01:34.6]} 26. Rad1 {[%clk
0:00:22.1]} 26... Bxe5 {[%clk 0:01:26.5]} 27. dxe5 {[%clk 0:00:17.6]} 27... Qxc5
{[%clk 0:01:27.8]} 28. e6 {[%clk 0:00:19]} 28... fxe6 {[%clk 0:01:25.2]} 29. Qe4
{[%clk 0:00:19.9]} 29... Rf6 {[%clk 0:01:22.9]} 30. h4 {[%clk 0:00:19.1]} 30...
Rdf5 {[%clk 0:01:17]} 31. Rf1 {[%clk 0:00:18.8]} 31... Rf4 {[%clk 0:01:15.4]}
32. Qe2 {[%clk 0:00:19.6]} 32... Rxh4 {[%clk 0:01:14.4]} 33. Rd8+ {[%clk
0:00:20.8]} 33... Kg7 {[%clk 0:01:15.1]} 34. Rfd1 {[%clk 0:00:22.7]} 34... Qg5+
{[%clk 0:01:15]} 35. Qg4 {[%clk 0:00:24]} 35... Rxg4+ {[%clk 0:01:16.1]} 36. Kf1
{[%clk 0:00:25.9]} 36... Rg1+ {[%clk 0:01:17]} 37. Ke2 {[%clk 0:00:27.8]} 37...
Qe5+ {[%clk 0:01:18.3]} 38. Kd3 {[%clk 0:00:29.5]} 38... Rf3+ {[%clk 0:01:19]}
39. Kc2 {[%clk 0:00:31.4]} 39... Rxf2+ {[%clk 0:01:20]} 40. Kb3 {[%clk
0:00:33.3]} 40... Qxb2+ {[%clk 0:01:20.5]} 41. Kc4 {[%clk 0:00:35.2]} 41... Qb4+
{[%clk 0:01:21.8]} 42. Kd3 {[%clk 0:00:36.4]} 42... Rg3# {[%clk 0:01:22.7]} 0-1

[Event "*** Titled Tuesday Blitz"]
[Site "Chess.com"]
[Date "2019.11.05"]
[Round "6"]
[White "Alex_Molchanov"]
[Black "hypert"]
[Result "1/2-1/2"]
[WhiteElo "2625"]
[BlackElo "2469"]
[TimeControl "180+2"]
[EndTime "14:19:58 PST"]
[Termination "Game drawn by agreement"]

1. Nf3 {[%clk 0:03:01.9]} 1... d5 {[%clk 0:03:00.7]} 2. d4 {[%clk 0:03:01.5]}
2... Nf6 {[%clk 0:03:01.3]} 3. c4 {[%clk 0:03:01.8]} 3... e6 {[%clk 0:03:02.3]}
4. Nc3 {[%clk 0:03:02.6]} 4... Bb4 {[%clk 0:03:03.3]} 5. Bd2 {[%clk 0:02:56.9]}
5... O-O {[%clk 0:02:56]} 6. e3 {[%clk 0:02:57.8]} 6... b6 {[%clk 0:02:54.3]} 7.
Bd3 {[%clk 0:02:54.4]} 7... Ba6 {[%clk 0:02:54.9]} 8. Qe2 {[%clk 0:02:46.7]}
8... c5 {[%clk 0:02:48.5]} 9. cxd5 {[%clk 0:02:38.7]} 9... Bxd3 {[%clk
0:02:48.8]} 10. Qxd3 {[%clk 0:02:40.6]} 10... exd5 {[%clk 0:02:47.1]} 11. O-O
{[%clk 0:02:35.4]} 11... c4 {[%clk 0:02:47.4]} 12. Qc2 {[%clk 0:02:34]} 12...
Re8 {[%clk 0:02:45.1]} 13. b3 {[%clk 0:02:24.9]} 13... Bxc3 {[%clk 0:02:43.2]}
14. Bxc3 {[%clk 0:02:25.8]} 14... Qc7 {[%clk 0:02:08.4]} 15. bxc4 {[%clk
0:02:23.9]} 15... Qxc4 {[%clk 0:02:08.7]} 16. Qb3 {[%clk 0:02:17.1]} 16... Rc8
{[%clk 0:01:59.3]} 17. Rfc1 {[%clk 0:02:13]} 17... Nbd7 {[%clk 0:01:49.6]} 18.
Qxc4 {[%clk 0:01:50.1]} 18... Rxc4 {[%clk 0:01:49.8]} 19. Nd2 {[%clk 0:01:51.1]}
19... Rc6 {[%clk 0:01:45.9]} 20. Bb2 {[%clk 0:01:51.4]} 20... Rac8 {[%clk
0:01:46.7]} 21. Rxc6 {[%clk 0:01:52.9]} 21... Rxc6 {[%clk 0:01:48.6]} 22. Rc1
{[%clk 0:01:54.3]} 22... Nb8 {[%clk 0:01:44.3]} 23. f3 {[%clk 0:01:39.1]} 23...
Rxc1+ {[%clk 0:01:35.4]} 24. Bxc1 {[%clk 0:01:41]} 24... Nc6 {[%clk 0:01:34.9]}
25. Ba3 {[%clk 0:01:37.3]} 25... Nd7 {[%clk 0:01:34.1]} 26. Kf2 {[%clk
0:01:36.6]} 26... f5 {[%clk 0:01:35.1]} 27. Ke2 {[%clk 0:01:34.1]} 27... Kf7
{[%clk 0:01:35.8]} 28. Kd3 {[%clk 0:01:32.8]} 28... Nf6 {[%clk 0:01:25.7]} 29.
h3 {[%clk 0:01:20]} 29... Ke6 {[%clk 0:01:26]} 30. g4 {[%clk 0:01:07.4]} 30...
g6 {[%clk 0:01:26.8]} 31. Bf8 {[%clk 0:00:59.9]} 31... a5 {[%clk 0:01:15.8]} 32.
a4 {[%clk 0:00:40.8]} 32... h5 {[%clk 0:00:53.2]} 33. gxf5+ {[%clk 0:00:30]}
33... gxf5 {[%clk 0:00:55.1]} 34. h4 {[%clk 0:00:28.8]} 1/2-1/2

[Event "*** Titled Tuesday Blitz"]
[Site "Chess.com"]
[Date "2019.11.05"]
[Round "6"]
[White "DanielNaroditsky"]
[Black "justantan"]
[Result "0-1"]
[WhiteElo "2967"]
[BlackElo "2864"]
[TimeControl "180+2"]
[EndTime "14:20:06 PST"]
[Termination "justantan won by checkmate"]

1. Nf3 {[%clk 0:03:01.9]} 1... d5 {[%clk 0:03:00.7]} 2. g3 {[%clk 0:03:03.3]}
2... Bg4 {[%clk 0:03:01.1]} 3. Bg2 {[%clk 0:03:04.6]} 3... Nd7 {[%clk
0:03:02.3]} 4. O-O {[%clk 0:03:05.9]} 4... e6 {[%clk 0:03:03.4]} 5. d3 {[%clk
0:03:07.4]} 5... Ngf6 {[%clk 0:03:04]} 6. c4 {[%clk 0:03:09.1]} 6... c6 {[%clk
0:03:04.6]} 7. cxd5 {[%clk 0:03:09]} 7... exd5 {[%clk 0:03:05.4]} 8. Nc3 {[%clk
0:03:06.5]} 8... Bc5 {[%clk 0:03:06.1]} 9. Qc2 {[%clk 0:03:00.9]} 9... O-O
{[%clk 0:03:06.2]} 10. b3 {[%clk 0:03:01.9]} 10... Re8 {[%clk 0:03:06.5]} 11.
Bb2 {[%clk 0:03:03]} 11... Qe7 {[%clk 0:03:06.6]} 12. Rfe1 {[%clk 0:02:48.9]}
12... Rad8 {[%clk 0:02:56.1]} 13. e3 {[%clk 0:02:40]} 13... Bxf3 {[%clk
0:02:51.1]} 14. Bxf3 {[%clk 0:02:40.9]} 14... d4 {[%clk 0:02:50]} 15. Ne4 {[%clk
0:02:25.5]} 15... dxe3 {[%clk 0:02:39.7]} 16. fxe3 {[%clk 0:02:20.4]} 16... Nxe4
{[%clk 0:02:38.5]} 17. Bxe4 {[%clk 0:02:22.3]} 17... Bb6 {[%clk 0:02:32.4]} 18.
Kh1 {[%clk 0:01:54.2]} 18... Nc5 {[%clk 0:02:15.4]} 19. Bf5 {[%clk 0:01:50.4]}
19... g6 {[%clk 0:02:08.6]} 20. Qc3 {[%clk 0:01:47.5]} 20... f6 {[%clk
0:02:09.8]} 21. b4 {[%clk 0:01:34.9]} 21... gxf5 {[%clk 0:01:57.3]} 22. bxc5
{[%clk 0:01:36.3]} 22... Bxc5 {[%clk 0:01:58]} 23. Qc4+ {[%clk 0:01:23.8]} 23...
Kg7 {[%clk 0:01:54.6]} 24. Rf1 {[%clk 0:01:21.9]} 24... Qxe3 {[%clk 0:01:41.1]}
25. Qh4 {[%clk 0:00:32.5]} 25... Bd4 {[%clk 0:01:37.3]} 26. Bc1 {[%clk
0:00:33.9]} 26... Qxd3 {[%clk 0:01:29.8]} 27. Bh6+ {[%clk 0:00:35.1]} 27... Kg6
{[%clk 0:01:25.1]} 28. Rab1 {[%clk 0:00:31.7]} 28... Bb6 {[%clk 0:01:20.4]} 29.
Kg2 {[%clk 0:00:13.4]} 29... Re2+ {[%clk 0:01:18.2]} 30. Kh3 {[%clk 0:00:14.2]}
30... Rd4 {[%clk 0:01:17.6]} 31. Bf4 {[%clk 0:00:15]} 31... h5 {[%clk
0:01:05.7]} 32. Rb3 {[%clk 0:00:05.2]} 32... Qc2 {[%clk 0:01:03.5]} 33. g4
{[%clk 0:00:06.2]} 33... fxg4+ {[%clk 0:00:59]} 34. Kg3 {[%clk 0:00:06.5]} 34...
Rg2# {[%clk 0:00:59.9]} 0-1

[Event "*** Titled Tuesday Blitz"]
[Site "Chess.com"]
[Date "2019.11.05"]
[Round "6"]
[White "DinaBelenkaya"]
[Black "isla88"]
[Result "1-0"]
[WhiteElo "2316"]
[BlackElo "2171"]
[TimeControl "180+2"]
[EndTime "14:20:08 PST"]
[Termination "DinaBelenkaya won by checkmate"]

1. e4 {[%clk 0:02:58.7]} 1... d6 {[%clk 0:02:58.3]} 2. d4 {[%clk 0:02:58.1]}
2... Nf6 {[%clk 0:02:52.1]} 3. Nc3 {[%clk 0:02:53.1]} 3... Nbd7 {[%clk
0:02:51.5]} 4. f4 {[%clk 0:02:52.5]} 4... e5 {[%clk 0:02:51.7]} 5. dxe5 {[%clk
0:02:45.2]} 5... dxe5 {[%clk 0:02:51.7]} 6. Nf3 {[%clk 0:02:37.3]} 6... exf4
{[%clk 0:02:49.2]} 7. Bxf4 {[%clk 0:02:37.8]} 7... Bb4 {[%clk 0:02:44.3]} 8. Bd3
{[%clk 0:02:36.2]} 8... Nc5 {[%clk 0:02:37.8]} 9. O-O {[%clk 0:02:34]} 9... O-O
{[%clk 0:02:31.8]} 10. Nd5 {[%clk 0:02:27]} 10... Nxd3 {[%clk 0:02:11.6]} 11.
Qxd3 {[%clk 0:02:25.3]} 11... Bc5+ {[%clk 0:02:09.6]} 12. Kh1 {[%clk 0:02:24.8]}
12... c6 {[%clk 0:01:46.7]} 13. Nc7 {[%clk 0:02:20.3]} 13... Rb8 {[%clk
0:01:27.6]} 14. Na6 {[%clk 0:02:20.6]} 14... bxa6 {[%clk 0:01:18.4]} 15. Bxb8
{[%clk 0:02:20.3]} 15... Qb6 {[%clk 0:01:08.9]} 16. Be5 {[%clk 0:02:16.5]} 16...
Rd8 {[%clk 0:01:08.1]} 17. Qe2 {[%clk 0:02:17]} 17... Ng4 {[%clk 0:01:07.1]} 18.
Bg3 {[%clk 0:02:11.1]} 18... Qxb2 {[%clk 0:01:02.6]} 19. Ng5 {[%clk 0:02:11.4]}
19... Ne3 {[%clk 0:00:32.4]} 20. Nxf7 {[%clk 0:00:40.5]} 20... Bg4 {[%clk
0:00:32.7]} 21. Qxa6 {[%clk 0:00:21.6]} 21... Nxf1 {[%clk 0:00:29.2]} 22. Rxf1
{[%clk 0:00:22.5]} 22... Rf8 {[%clk 0:00:29.8]} 23. Qc4 {[%clk 0:00:22.6]} 23...
Qb8 {[%clk 0:00:06.5]} 24. Nh6+ {[%clk 0:00:22.6]} 24... Kh8 {[%clk 0:00:06.2]}
25. Qg8+ {[%clk 0:00:24]} 25... Rxg8 {[%clk 0:00:06.9]} 26. Nf7# {[%clk
0:00:25.5]} 1-0

[Event "*** Titled Tuesday Blitz"]
[Site "Chess.com"]
[Date "2019.11.05"]
[Round "6"]
[White "enriquetejedor"]
[Black "Perecke"]
[Result "1-0"]
[WhiteElo "2495"]
[BlackElo "2148"]
[TimeControl "180+2"]
[EndTime "14:20:11 PST"]
[Termination "enriquetejedor won by checkmate"]

1. e4 {[%clk 0:00:34.4]} 1... e5 {[%clk 0:03:00.2]} 2. Nf3 {[%clk 0:00:32.9]}
2... Nc6 {[%clk 0:03:01.3]} 3. d4 {[%clk 0:00:31.8]} 3... exd4 {[%clk
0:03:03.2]} 4. Bc4 {[%clk 0:00:30.4]} 4... Nf6 {[%clk 0:03:04.1]} 5. e5 {[%clk
0:00:30.6]} 5... d5 {[%clk 0:03:05.1]} 6. Bb5 {[%clk 0:00:31.1]} 6... Ne4 {[%clk
0:03:06.2]} 7. Nxd4 {[%clk 0:00:30.2]} 7... Bc5 {[%clk 0:03:07.4]} 8. O-O {[%clk
0:00:24.2]} 8... O-O {[%clk 0:03:07.3]} 9. Nxc6 {[%clk 0:00:20.7]} 9... bxc6
{[%clk 0:03:07.2]} 10. Bxc6 {[%clk 0:00:22.1]} 10... Ba6 {[%clk 0:03:00.3]} 11.
Qxd5 {[%clk 0:00:22.9]} 11... Bxf1 {[%clk 0:02:52.2]} 12. Bxa8 {[%clk 0:00:20]}
12... Qh4 {[%clk 0:02:37.2]} 13. g3 {[%clk 0:00:19.5]} 13... Bxf2+ {[%clk
0:01:20.2]} 14. Kxf1 {[%clk 0:00:17.5]} 14... Qxh2 {[%clk 0:01:01.4]} 15. Qxe4
{[%clk 0:00:13.4]} 15... Qg1+ {[%clk 0:01:02.5]} 16. Ke2 {[%clk 0:00:14.7]}
16... Qxc1 {[%clk 0:00:51.9]} 17. Kxf2 {[%clk 0:00:05.2]} 17... Qxb2 {[%clk
0:00:52.5]} 18. Nc3 {[%clk 0:00:04.8]} 18... Qxa1 {[%clk 0:00:52]} 19. Ne2
{[%clk 0:00:04.4]} 19... Qxa2 {[%clk 0:00:50.4]} 20. Bd5 {[%clk 0:00:04.6]}
20... Qa3 {[%clk 0:00:44.4]} 21. Bb3 {[%clk 0:00:03.6]} 21... Kh8 {[%clk
0:00:42.3]} 22. Nf4 {[%clk 0:00:04]} 22... a5 {[%clk 0:00:39.6]} 23. Qf5 {[%clk
0:00:03.1]} 23... a4 {[%clk 0:00:34.3]} 24. Bxf7 {[%clk 0:00:03.8]} 24... Qc5+
{[%clk 0:00:27.1]} 25. Kg2 {[%clk 0:00:04.8]} 25... a3 {[%clk 0:00:26.5]} 26.
Ng6+ {[%clk 0:00:05.4]} 26... hxg6 {[%clk 0:00:25]} 27. Qh3# {[%clk 0:00:07.3]}
1-0

[Event "*** Titled Tuesday Blitz"]
[Site "Chess.com"]
[Date "2019.11.05"]
[Round "6"]
[White "gorgeous1083"]
[Black "FearNoEvil12"]
[Result "1-0"]
[WhiteElo "1998"]
[BlackElo "1968"]
[TimeControl "180+2"]
[EndTime "14:20:22 PST"]
[Termination "gorgeous1083 won by resignation"]

1. e4 {[%clk 0:03:01.9]} 1... a6 {[%clk 0:03:00.4]} 2. d4 {[%clk 0:03:02.2]}
2... b5 {[%clk 0:03:01.7]} 3. g3 {[%clk 0:03:00.3]} 3... Bb7 {[%clk 0:03:02.6]}
4. Bg2 {[%clk 0:03:01.9]} 4... e6 {[%clk 0:03:03.8]} 5. Ne2 {[%clk 0:03:03.1]}
5... Nf6 {[%clk 0:03:04.2]} 6. Bg5 {[%clk 0:02:55]} 6... Be7 {[%clk 0:03:04.2]}
7. Bxf6 {[%clk 0:02:54.4]} 7... gxf6 {[%clk 0:03:04.3]} 8. Qd3 {[%clk
0:02:35.7]} 8... f5 {[%clk 0:03:03.4]} 9. Nd2 {[%clk 0:02:32.2]} 9... fxe4
{[%clk 0:03:01.9]} 10. Nxe4 {[%clk 0:02:28.5]} 10... Nc6 {[%clk 0:03:03.2]} 11.
Nf4 {[%clk 0:02:21.6]} 11... d6 {[%clk 0:02:46.9]} 12. Qc3 {[%clk 0:02:13.2]}
12... Qd7 {[%clk 0:02:45.2]} 13. O-O-O {[%clk 0:02:02.3]} 13... O-O-O {[%clk
0:02:44.5]} 14. Rhe1 {[%clk 0:01:51.6]} 14... d5 {[%clk 0:02:22.4]} 15. Nc5
{[%clk 0:01:44.5]} 15... Bxc5 {[%clk 0:02:23.6]} 16. Qxc5 {[%clk 0:01:41.1]}
16... Qd6 {[%clk 0:02:23.9]} 17. Qxd6 {[%clk 0:01:35.5]} 17... cxd6 {[%clk
0:02:25.2]} 18. h4 {[%clk 0:01:28.6]} 18... Kd7 {[%clk 0:02:24.8]} 19. Bh3
{[%clk 0:01:28.6]} 19... Kc7 {[%clk 0:02:19.6]} 20. Bxe6 {[%clk 0:01:13.5]}
20... fxe6 {[%clk 0:02:19.5]} 21. Nxe6+ {[%clk 0:01:15.4]} 21... Kd7 {[%clk
0:02:20.2]} 22. Nxd8 {[%clk 0:01:14.8]} 22... Nxd8 {[%clk 0:02:19.5]} 23. Rd3
{[%clk 0:00:56.5]} 23... Ne6 {[%clk 0:02:16.7]} 24. c3 {[%clk 0:00:54.1]} 24...
Rf8 {[%clk 0:02:14.8]} 25. Rde3 {[%clk 0:00:47.5]} 25... Rf6 {[%clk 0:02:14.6]}
26. f3 {[%clk 0:00:40.6]} 26... Bc8 {[%clk 0:02:13.5]} 27. g4 {[%clk 0:00:36.9]}
27... Ke7 {[%clk 0:02:12.9]} 28. Kd2 {[%clk 0:00:31.9]} 28... Kf7 {[%clk
0:02:12.8]} 29. Ke2 {[%clk 0:00:30.6]} 29... Nf4+ {[%clk 0:02:10.9]} 30. Kf2
{[%clk 0:00:30.8]} 30... Bxg4 {[%clk 0:02:01.4]} 31. Re7+ {[%clk 0:00:29.2]}
31... Kg6 {[%clk 0:02:01.5]} 32. fxg4 {[%clk 0:00:23.3]} 32... Nd3+ {[%clk
0:02:01.1]} 33. Kg3 {[%clk 0:00:21.7]} 33... Nxe1 {[%clk 0:02:03]} 34. Rxe1
{[%clk 0:00:22.3]} 34... Kf7 {[%clk 0:01:51.2]} 35. Re2 {[%clk 0:00:18.5]} 35...
a5 {[%clk 0:01:50.5]} 36. Rf2 {[%clk 0:00:18.2]} 36... b4 {[%clk 0:01:49.2]} 37.
Rxf6+ {[%clk 0:00:14.4]} 37... Kxf6 {[%clk 0:01:50]} 38. cxb4 {[%clk 0:00:14.1]}
38... axb4 {[%clk 0:01:51.2]} 39. Kf4 {[%clk 0:00:12.8]} 39... h6 {[%clk
0:01:48.7]} 40. a4 {[%clk 0:00:10.2]} 40... bxa3 {[%clk 0:01:48.5]} 41. bxa3
{[%clk 0:00:10.8]} 41... Kg6 {[%clk 0:01:47.4]} 42. a4 {[%clk 0:00:11.3]} 42...
Kf6 {[%clk 0:01:47.7]} 43. a5 {[%clk 0:00:11.9]} 43... Ke7 {[%clk 0:01:48.1]}
44. a6 {[%clk 0:00:12.4]} 44... Kf6 {[%clk 0:01:49.3]} 45. a7 {[%clk 0:00:13.2]}
45... Kg7 {[%clk 0:01:50.7]} 46. a8=Q {[%clk 0:00:13.8]} 46... Kg6 {[%clk
0:01:51.9]} 47. Qxd5 {[%clk 0:00:13.2]} 47... Kg7 {[%clk 0:01:52]} 48. Qxd6
{[%clk 0:00:13.7]} 48... h5 {[%clk 0:01:53.1]} 49. gxh5 {[%clk 0:00:13.7]} 49...
Kh7 {[%clk 0:01:54.2]} 50. Qg6+ {[%clk 0:00:13.3]} 50... Kh8 {[%clk 0:01:55]}
51. Qd6 {[%clk 0:00:13.4]} 51... Kh7 {[%clk 0:01:55.6]} 52. Kg5 {[%clk
0:00:14.2]} 52... Kh8 {[%clk 0:01:56.5]} 53. Kg6 {[%clk 0:00:14.6]} 1-0

[Event "*** Titled Tuesday Blitz"]
[Site "Chess.com"]
[Date "2019.11.05"]
[Round "6"]
[White "LastHeroJr"]
[Black "medalja"]
[Result "0-1"]
[WhiteElo "2573"]
[BlackElo "2409"]
[TimeControl "180+2"]
[EndTime "14:20:25 PST"]
[Termination "medalja won by resignation"]

1. e4 {[%clk 0:01:45.6]} 1... c6 {[%clk 0:02:54.5]} 2. d4 {[%clk 0:01:44.6]}
2... d5 {[%clk 0:02:54.4]} 3. e5 {[%clk 0:01:45.6]} 3... c5 {[%clk 0:02:54.5]}
4. Nf3 {[%clk 0:01:46]} 4... Nc6 {[%clk 0:02:49.3]} 5. c4 {[%clk 0:01:39.8]}
5... cxd4 {[%clk 0:02:17.1]} 6. Nxd4 {[%clk 0:01:38.4]} 6... Nxe5 {[%clk
0:02:17.3]} 7. cxd5 {[%clk 0:01:18.6]} 7... Qxd5 {[%clk 0:02:17.6]} 8. Nc3
{[%clk 0:01:18.6]} 8... Qa5 {[%clk 0:02:18]} 9. Bb5+ {[%clk 0:01:13.9]} 9... Bd7
{[%clk 0:02:18.6]} 10. Bf4 {[%clk 0:01:12]} 10... a6 {[%clk 0:02:10.5]} 11. Nb3
{[%clk 0:00:35.6]} 11... Qb4 {[%clk 0:01:47.2]} 12. Bxe5 {[%clk 0:00:28.5]}
12... Bxb5 {[%clk 0:01:26.3]} 13. Qf3 {[%clk 0:00:17.9]} 13... Bc6 {[%clk
0:01:22.5]} 14. Qe3 {[%clk 0:00:14.9]} 14... Nh6 {[%clk 0:00:57.5]} 15. O-O-O
{[%clk 0:00:15.1]} 15... Ng4 {[%clk 0:00:58.1]} 16. Qg3 {[%clk 0:00:16.2]} 16...
Nxe5 {[%clk 0:00:58.9]} 17. Qxe5 {[%clk 0:00:18.1]} 17... e6 {[%clk 0:00:57.5]}
18. Rd4 {[%clk 0:00:17.8]} 18... Qb6 {[%clk 0:00:53.7]} 19. Rhd1 {[%clk
0:00:18.7]} 19... Rc8 {[%clk 0:00:31.5]} 20. Kb1 {[%clk 0:00:19.4]} 20... h5
{[%clk 0:00:23.9]} 21. Nd2 {[%clk 0:00:18.4]} 21... Qc7 {[%clk 0:00:23.3]} 22.
Qg5 {[%clk 0:00:18.9]} 22... Qe7 {[%clk 0:00:20.1]} 23. Qe3 {[%clk 0:00:18]}
23... g6 {[%clk 0:00:20.7]} 24. Nc4 {[%clk 0:00:18.7]} 24... Qc7 {[%clk
0:00:20.2]} 25. Ne4 {[%clk 0:00:09.4]} 25... Bxe4+ {[%clk 0:00:18.8]} 26. Rxe4
{[%clk 0:00:11]} 26... Be7 {[%clk 0:00:19.5]} 27. Ne5 {[%clk 0:00:06.6]} 27...
Qc2+ {[%clk 0:00:19.7]} 0-1

[Event "*** Titled Tuesday Blitz"]
[Site "Chess.com"]
[Date "2019.11.05"]
[Round "6"]
[White "MikaelyanArman"]
[Black "MartinZumsande"]
[Result "1-0"]
[WhiteElo "2735"]
[BlackElo "2546"]
[TimeControl "180+2"]
[EndTime "14:20:36 PST"]
[Termination "MikaelyanArman won by resignation"]

1. e4 {[%clk 0:03:01.9]} 1... e6 {[%clk 0:03:01]} 2. d4 {[%clk 0:03:02.5]} 2...
d5 {[%clk 0:03:02.5]} 3. Nc3 {[%clk 0:03:03.7]} 3... Nf6 {[%clk 0:03:03.7]} 4.
Bg5 {[%clk 0:03:03.6]} 4... Bb4 {[%clk 0:03:03.7]} 5. e5 {[%clk 0:03:04]} 5...
h6 {[%clk 0:03:05.2]} 6. Be3 {[%clk 0:03:02.6]} 6... Ne4 {[%clk 0:03:06.3]} 7.
Qg4 {[%clk 0:02:59.8]} 7... Kf8 {[%clk 0:03:07.4]} 8. a3 {[%clk 0:02:54.5]} 8...
Bxc3+ {[%clk 0:03:08.1]} 9. bxc3 {[%clk 0:02:55.6]} 9... Nxc3 {[%clk 0:03:10]}
10. Bd3 {[%clk 0:02:51]} 10... c5 {[%clk 0:03:09.6]} 11. dxc5 {[%clk 0:02:50]}
11... Nc6 {[%clk 0:03:11.2]} 12. Nf3 {[%clk 0:02:49.4]} 12... f5 {[%clk
0:03:12.7]} 13. Qh5 {[%clk 0:02:39.4]} 13... Qe8 {[%clk 0:03:13.7]} 14. Qh3
{[%clk 0:02:33.3]} 14... Kg8 {[%clk 0:03:09.3]} 15. g4 {[%clk 0:02:30.5]} 15...
Ne4 {[%clk 0:02:51.7]} 16. Rg1 {[%clk 0:02:27.2]} 16... g5 {[%clk 0:02:43]} 17.
O-O-O {[%clk 0:01:33.8]} 17... f4 {[%clk 0:02:26.5]} 18. Bxf4 {[%clk 0:01:30.6]}
18... Nxf2 {[%clk 0:02:06.7]} 19. Qh5 {[%clk 0:01:06.7]} 19... Qxh5 {[%clk
0:02:01]} 20. gxh5 {[%clk 0:01:08.6]} 20... Nxd1 {[%clk 0:02:01.9]} 21. Kxd1
{[%clk 0:01:02.1]} 21... Kf7 {[%clk 0:01:50.1]} 22. Be3 {[%clk 0:00:56.6]} 22...
Bd7 {[%clk 0:01:45.6]} 23. h4 {[%clk 0:00:54.7]} 23... d4 {[%clk 0:01:23.6]} 24.
Bf2 {[%clk 0:00:53.6]} 24... Rag8 {[%clk 0:01:01.3]} 25. hxg5 {[%clk 0:00:51.4]}
25... hxg5 {[%clk 0:01:02.4]} 26. Nxg5+ {[%clk 0:00:48]} 26... Ke7 {[%clk
0:00:51.6]} 27. Bh4 {[%clk 0:00:35.6]} 27... Nxe5 {[%clk 0:00:37.6]} 28. Nh7+
{[%clk 0:00:29]} 28... Kf7 {[%clk 0:00:38.8]} 29. Rf1+ {[%clk 0:00:26.5]} 29...
Ke8 {[%clk 0:00:25.9]} 30. Nf6+ {[%clk 0:00:26.8]} 30... Kf7 {[%clk 0:00:18.9]}
31. Nxd7+ {[%clk 0:00:27.4]} 1-0

[Event "*** Titled Tuesday Blitz"]
[Site "Chess.com"]
[Date "2019.11.05"]
[Round "6"]
[White "Zq1"]
[Black "arminmusovic"]
[Result "1/2-1/2"]
[WhiteElo "2610"]
[BlackElo "2435"]
[TimeControl "180+2"]
[EndTime "14:20:38 PST"]
[Termination "Game drawn by repetition"]

1. d4 {[%clk 0:03:01.9]} 1... d5 {[%clk 0:03:01]} 2. c4 {[%clk 0:03:02.9]} 2...
c5 {[%clk 0:03:02.8]} 3. cxd5 {[%clk 0:03:03.6]} 3... Qxd5 {[%clk 0:03:03.6]} 4.
Nf3 {[%clk 0:03:03.7]} 4... cxd4 {[%clk 0:03:05.1]} 5. Nc3 {[%clk 0:03:04.2]}
5... Qa5 {[%clk 0:03:06.7]} 6. Nxd4 {[%clk 0:03:01.3]} 6... Nf6 {[%clk
0:03:07.9]} 7. g3 {[%clk 0:03:00]} 7... e5 {[%clk 0:03:08.7]} 8. Nb3 {[%clk
0:02:59.7]} 8... Qc7 {[%clk 0:03:09.7]} 9. Bg2 {[%clk 0:02:57.8]} 9... Bb4
{[%clk 0:03:10.8]} 10. O-O {[%clk 0:02:57.8]} 10... Bxc3 {[%clk 0:03:12.3]} 11.
bxc3 {[%clk 0:02:58.3]} 11... O-O {[%clk 0:03:13.9]} 12. Ba3 {[%clk 0:02:54]}
12... Rd8 {[%clk 0:03:15]} 13. Qc2 {[%clk 0:02:52]} 13... Nc6 {[%clk 0:03:16.3]}
14. Nc5 {[%clk 0:02:35.5]} 14... b6 {[%clk 0:03:12.1]} 15. Nd3 {[%clk
0:02:30.7]} 15... Bb7 {[%clk 0:03:09.6]} 16. Rfd1 {[%clk 0:02:20.9]} 16... Nd4
{[%clk 0:02:57.5]} 17. Qb2 {[%clk 0:02:20.4]} 17... Bxg2 {[%clk 0:02:57.9]} 18.
cxd4 {[%clk 0:02:15.7]} 18... Bb7 {[%clk 0:02:48.4]} 19. Nxe5 {[%clk 0:02:13.6]}
19... Qc8 {[%clk 0:02:39.9]} 20. f3 {[%clk 0:02:06.7]} 20... Qh3 {[%clk
0:02:34.5]} 21. e4 {[%clk 0:02:01.5]} 21... Rac8 {[%clk 0:02:04.5]} 22. Rac1
{[%clk 0:01:52.7]} 22... h5 {[%clk 0:01:57]} 23. Be7 {[%clk 0:01:42.7]} 23...
Rxc1 {[%clk 0:01:41.3]} 24. Rxc1 {[%clk 0:01:40.5]} 24... Re8 {[%clk 0:01:40.1]}
25. Rc7 {[%clk 0:01:31.2]} 25... Ba6 {[%clk 0:01:24.7]} 26. Qg2 {[%clk
0:01:20.2]} 26... Qe6 {[%clk 0:01:18.4]} 27. Ba3 {[%clk 0:01:03.2]} 27... Rc8
{[%clk 0:01:00.4]} 28. Rxc8+ {[%clk 0:01:01.3]} 28... Qxc8 {[%clk 0:00:58.9]}
29. Qb2 {[%clk 0:01:00.1]} 29... h4 {[%clk 0:00:54.7]} 30. g4 {[%clk 0:00:58.9]}
30... h3 {[%clk 0:00:52.7]} 31. Kf2 {[%clk 0:00:57.7]} 31... Qe8 {[%clk
0:00:49.1]} 32. Kg3 {[%clk 0:00:53.7]} 32... Qa4 {[%clk 0:00:34.7]} 33. Qb3
{[%clk 0:00:30.4]} 33... Qxd4 {[%clk 0:00:32.2]} 34. Qxf7+ {[%clk 0:00:30.8]}
34... Kh7 {[%clk 0:00:33.8]} 35. Qg6+ {[%clk 0:00:30.5]} 35... Kg8 {[%clk
0:00:35.3]} 36. Qf7+ {[%clk 0:00:14.2]} 36... Kh7 {[%clk 0:00:36.2]} 37. Qg6+
{[%clk 0:00:14.6]} 37... Kg8 {[%clk 0:00:37.5]} 38. Qf7+ {[%clk 0:00:11.5]}
1/2-1/2